{"text_format":"1","workbook":"xlsx","n_sheets":2,"sheets":["Stats","BDD"],"not_rendered":{"charts":8,"images":0,"macros":1,"external_links":0,"defined_names":0,"comments":0,"pivot_tables":0},"unopened":[],"bounds":{"document_bytes":16777216,"sheet_cells":100000,"rows_first":2000,"rows_last":500,"rows_between":2000,"halvings":0,"cell_chars":16384,"cell_head_chars":4096},"cells_cut":0,"cells_raw":0,"read":"whole","date_system":"1900"}

{"sheet":"Stats","index":0,"n_rows":43,"n_cols":2,"rows_kept":43,"cut":false,"hidden":false,"merged":[[34,0,34,1],[40,0,40,1],[1,0,1,1],[5,0,5,1],[10,0,10,1],[16,0,16,1],[22,0,22,1],[28,0,28,1]]}
[]
["1 - Lieu d'achat :"]
["Barillerie",{"$f":"COUNTIF(BDD!B:B,A3)","v":1}]
["Guépin",{"$f":"COUNTIF(BDD!B:B,A4)","v":1}]
[]
["2 - Achat Effectué :"]
["Optique",{"$f":"COUNTIF(BDD!C:C,A7)","v":1}]
["Solaire",{"$f":"COUNTIF(BDD!C:C,A8)","v":1}]
["Optique + Solaire",{"$f":"COUNTIF(BDD!C:C,A9)","v":0}]
[]
["3 - Accueil :"]
["Très Satisfaisant",{"$f":"COUNTIF(BDD!D:D,\"Très Satisfaisant\")","v":0}]
["Satisfaisant",{"$f":"COUNTIF(BDD!D:D,\"Satisfaisant\")","v":2}]
["Moyen",{"$f":"COUNTIF(BDD!D:D,\"Moyen\")","v":0}]
["Pas satisfaisant",{"$f":"COUNTIF(BDD!D:D,\"Pas Satisfaisant\")","v":0}]
[]
["4 - Choix monture / Qté :"]
["Trop large",{"$f":"COUNTIF(BDD!E:E,A18)","v":0}]
["Suffisant",{"$f":"COUNTIF(BDD!E:E,A19)","v":1}]
["Restreint",{"$f":"COUNTIF(BDD!E:E,A20)","v":1}]
["Insuffisant",{"$f":"COUNTIF(BDD!E:E,A21)","v":0}]
[]
["5 - Conseils Monture :"]
["Pertinents",{"$f":"COUNTIF(BDD!F:F,A24)","v":1}]
["Trop Orientés",{"$f":"COUNTIF(BDD!F:F,A25)","v":1}]
["Trop Libre",{"$f":"COUNTIF(BDD!F:F,A26)","v":0}]
["Inexistants",{"$f":"COUNTIF(BDD!F:F,A27)","v":0}]
[]
["6 - Conseils Verre :"]
["Trop détaillés",{"$f":"COUNTIF(BDD!G:G,A30)","v":0}]
["Suffisamment",{"$f":"COUNTIF(BDD!G:G,A31)","v":2}]
["Succints",{"$f":"COUNTIF(BDD!G:G,A32)","v":0}]
["Inexistants",{"$f":"COUNTIF(BDD!G:G,A33)","v":0}]
[]
["7 - Satisfaction globale :"]
["Oui",{"$f":"COUNTIF(BDD!H:H,A36)","v":1}]
["Non mais solution trouvée",{"$f":"COUNTIF(BDD!H:H,A37)","v":1}]
["Non et pas de solution",{"$f":"COUNTIF(BDD!H:H,A38)","v":0}]
["Non mais pas passé",{"$f":"COUNTIF(BDD!H:H,A39)","v":0}]
[]
["8 - Recommandation :"]
["Oui",{"$f":"COUNTIF(BDD!I:I,A42)","v":1}]
["Non",{"$f":"COUNTIF(BDD!I:I,A43)","v":1}]

{"sheet":"BDD","index":1,"n_rows":5,"n_cols":9,"rows_kept":5,"cut":false,"hidden":false,"merged":[]}
["Date de saisie ","Lieu d'achat ","Type Achat ","Accueil ","Choix monture   Qté ","Conseils Monture","Conseils verres ","Satisfaction globale ","Recommandation "]
["2014-04-25","Barillerie","Optique","Satisfaisant","Restreint","Pertinents","Suffisamment","Oui","Oui"]
["2014-01-01","Guépin","Solaire","Satisfaisant","Suffisant","Trop Orientés","Suffisamment","Non mais solution trouvée","Non"]
["","","","","","","","",""]
["","","","","","","","",""]